bitfinex/quotes_SOLUSD_20220113
["timestamp","ask_amount","ask_price","bid_price","bid_amount"]
[1642045045588,0.25,148.91,148.86,0.26]
[1642045045786,33.1773,148.93,148.86,2.946]
[1642045045987,33.1773,148.93,148.86,26.9577]
[1642045046186,33.1773,148.93,148.86,27.2077]
[1642045046387,33.1773,148.93,148.86,26.9577]
[1642045046785,23.1027,148.93,148.86,26.9577]
[1642045047187,1.91772471,148.95,148.86,27.2077]
[1642045047385,1.91772471,148.95,148.86,32.4687]
[1642045047586,1.91772471,148.95,148.86,99.3987]
[1642045047786,1.91772471,148.96,148.86,99.3987]
[1642045048188,1.91772471,148.96,148.86,109.4719]
[1642045048787,2.16772471,148.96,148.86,109.4719]
[1642045049188,0.25,148.96,148.86,109.4719]
[1642045049689,2.16772471,148.98,148.86,109.4719]
[1642045049889,2.16772471,148.98,148.87,72.869]
[1642045050091,1.91772471,148.98,148.9,10.0704]
[1642045050292,1.91772471,148.98,148.91,31.59199353]
[1642045050496,1.91772471,148.98,148.91,31.85199353]
[1642045050893,36.32442471,148.99,148.91,31.85199353]
[1642045051092,39.00942471,148.99,148.91,31.85199353]
[1642045051294,39.00942471,148.99,148.91,41.92189353]
[1642045051491,39.00942471,148.99,148.92,23.3744]
[1642045051492,26.50362471,148.99,148.92,23.3744]
[1642045052392,26.25362471,148.99,148.92,23.3744]
[1642045052594,24.3359,148.99,148.92,23.6244]
[1642045052794,24.3359,148.99,148.93,2.685]
[1642045053595,4.83572471,149.0,148.93,10.048]
[1642045053794,0.25,148.99,148.93,10.048]
[1642045053995,5.08572471,149.0,148.93,10.048]
[1642045054195,5.08572471,149.0,148.94,0.26]
[1642045054397,2.918,149.0,148.94,0.26]
[1642045054596,2.918,149.0,148.94,10.3277]
[1642045054799,2.918,149.0,148.94,16.3277]
[1642045054997,2.918,149.0,148.94,16.5777]
[1642045056098,2.918,149.0,148.94,10.0677]
[1642045056299,3.168,149.0,148.93,2.685]
[1642045056496,3.168,149.0,148.92,26.0594]
[1642045056697,2.685,148.99,148.89,1.74025246]
[1642045056897,2.945,148.99,148.89,24.42475246]
[1642045057099,3.195,148.99,148.89,24.42475246]
[1642045057296,3.195,148.99,148.89,51.27177993]
[1642045057496,3.195,148.99,148.89,51.52177993]
[1642045057697,3.195,148.99,148.89,49.78152747]
[1642045057898,3.195,148.99,148.9,2.685]
[1642045058300,13.2658,148.99,148.9,13.0051]
[1642045058500,13.2658,148.99,148.9,12.7551]
[1642045058701,13.2658,148.99,148.91,0.26]
[1642045059701,13.2658,148.99,148.9,10.0701]
[1642045059901,13.2658,148.99,148.9,12.7551]
[1642045061106,13.2658,148.99,148.9,10.0701]
[1642045062606,13.0058,148.99,148.9,10.0701]
[1642045062806,2.935,148.99,148.91,0.26]
[1642045063008,0.25,148.99,148.93,10.0685]
[1642045063215,14.58572471,149.0,148.94,2.685]
[1642045063410,12.668,149.0,148.93,10.0685]
[1642045063707,15.353,149.0,148.92,2.685]
[1642045063907,22.7377,149.0,148.92,2.685]
[1642045064109,22.7377,149.0,148.92,12.7542]
[1642045064311,22.7377,149.0,148.93,0.26]
[1642045065709,0.26,148.99,148.93,0.26]
[1642045066013,0.26,148.99,148.92,10.0692]
[1642045066209,0.26,148.99,148.9,12.7552]
[1642045066409,10.3304,148.99,148.91,0.26]
[1642045066610,2.685,148.98,148.91,0.26]
[1642045066811,13.2654,148.99,148.91,0.26]
[1642045067010,0.25,148.98,148.91,0.26]
[1642045067410,10.321,148.98,148.91,0.26]
[1642045067811,10.071,148.98,148.91,0.26]
[1642045068010,10.071,148.98,148.9,12.7552]
[1642045068613,10.071,148.98,148.9,2.685]
[1642045069210,10.321,148.98,148.9,2.685]
[1642045070415,0.26,148.97,148.9,2.685]
[1642045074554,10.3316,148.97,148.9,2.685]
[1642045074753,10.5816,148.97,148.9,2.685]
[1642045076355,10.3216,148.97,148.9,2.685]
[1642045076557,0.25,148.97,148.91,0.26]
[1642045076755,2.16772471,148.98,148.91,24.8755]
[1642045077356,2.16772471,148.98,148.91,24.6155]
[1642045077757,0.25,148.98,148.91,24.6155]
[1642045078156,10.071,148.98,148.91,24.6155]
[1642045078356,10.321,148.98,148.91,24.6155]
[1642045078558,12.23872471,148.98,148.91,24.6155]
[1642045079359,2.16772471,148.98,148.91,24.6155]
[1642045079761,2.16772471,148.98,148.91,34.6856]
[1642045079961,0.26,148.97,148.91,34.6856]
[1642045080362,24.50782471,148.99,148.91,34.9356]
[1642045080563,0.26,148.98,148.91,34.9356]
[1642045080862,0.26,148.98,148.91,34.6856]
[1642045081063,0.26,148.98,148.91,24.6155]
[1642045081864,9.76,148.98,148.91,24.6155]
[1642045082064,19.8311,148.98,148.91,24.6155]
[1642045082363,20.0811,148.98,148.91,24.6155]
[1642045083163,21.74882471,148.98,148.91,24.6155]
[1642045084266,5.14806073,148.97,148.89,24.5596]
[1642045084463,10.0731,148.95,148.9,0.26]
[1642045084664,10.3231,148.95,148.9,0.26]
[1642045085463,0.25,148.95,148.9,0.26]
[1642045085865,34.90592471,148.97,148.9,0.26]
[1642045086264,34.90592471,148.97,148.9,24.5361]
[1642045088266,34.65592471,148.97,148.9,27.2211]
[1642045088467,0.26,148.96,148.9,27.2211]
[1642045090568,0.26,148.96,148.9,2.945]
[1642045091469,10.3323,148.96,148.9,2.945]
[1642045091672,10.5823,148.96,148.9,0.26]
[1642045092269,10.3323,148.96,148.9,0.26]
[1642045092469,0.26,148.96,148.9,0.26]
[1642045092870,0.26,148.96,148.9,25.0354]
[1642045095071,10.3325,148.96,148.9,25.0354]
[1642045095271,10.5825,148.96,148.9,25.0354]
[1642045095473,0.51,148.96,148.9,25.0354]
[1642045096573,0.26,148.96,148.9,25.0354]
[1642045103107,2.945,148.96,148.9,25.0354]
[1642045103507,13.0173,148.96,148.9,25.0354]
[1642045103708,10.5823,148.96,148.9,25.0354]
[1642045104209,12.50002471,148.96,148.9,25.0354]
[1642045105908,12.50002471,148.96,148.9,0.26]
[1642045106110,12.50002471,148.96,148.89,23.8535]
[1642045106712,2.17772471,148.96,148.89,33.9249]
[1642045106909,1.91772471,148.96,148.89,33.9249]
[1642045107113,27.26882471,148.97,148.89,33.9249]
[1642045107312,24.58382471,148.97,148.9,2.685]
[1642045107513,24.58382471,148.97,148.91,0.26]
[1642045108010,22.9161,148.97,148.91,0.26]
[1642045108814,0.25,148.97,148.91,0.26]
[1642045109011,11.41772471,148.98,148.91,0.26]
[1642045109813,9.5,148.98,148.91,0.26]
[1642045110313,9.75,148.98,148.91,10.3301]
[1642045115520,19.8211,148.98,148.9,2.685]
[1642045115723,2.685,148.97,148.9,2.685]
[1642045115921,12.185,148.97,148.9,2.685]
[1642045116121,12.435,148.97,148.9,2.685]
[1642045116524,11.66772471,148.97,148.9,2.685]
[1642045117224,21.73962471,148.97,148.9,2.685]
[1642045117723,11.66772471,148.97,148.9,2.685]
[1642045118623,9.75,148.97,148.9,2.685]
[1642045119123,9.75,148.97,148.9,12.7557]
[1642045119325,9.75,148.97,148.91,0.26]
[1642045120323,9.75,148.97,148.91,10.3302]
[1642045121126,9.5,148.97,148.91,10.3302]
[1642045121425,9.5,148.97,148.92,2.685]
[1642045122426,9.75,148.97,148.92,2.685]
[1642045122828,9.75,148.97,148.91,10.3302]
[1642045123526,0.25,148.97,148.91,10.3302]
[1642045123728,12.23792471,148.99,148.92,23.5759]
[1642045124931,12.23792471,148.99,148.93,0.26]
[1642045125133,12.23792471,148.99,148.92,23.5759]
[1642045125333,15.52182198,148.98,148.89,2.685]
[1642045125544,10.0729,148.96,148.89,2.685]
[1642045125733,1.4954385,148.94,148.89,2.685]
[1642045125930,2.686,148.93,148.89,2.685]
[1642045126131,2.936,148.93,148.89,2.685]
[1642045126333,10.311,148.93,148.88,1.74025246]
[1642045126531,10.0752,148.92,148.88,1.74025246]
[1642045126763,10.3252,148.92,148.88,1.74025246]
[1642045126962,10.3252,148.92,148.87,0.6815576]
[1642045127362,0.26,148.91,148.87,0.6815576]
[1642045127562,10.3361,148.91,148.87,0.6815576]
[1642045127765,10.5861,148.91,148.87,0.6815576]
[1642045134566,10.3361,148.91,148.87,0.6815576]
[1642045136168,10.5861,148.91,148.87,0.6815576]
[1642045136872,9.5,148.9,148.87,0.6815576]
[1642045137271,16.14179994,148.89,148.87,0.6815576]
[1642045137671,16.39179994,148.89,148.87,0.6815576]
[1642045138472,10.3274,148.89,148.87,0.6815576]
[1642045140373,0.25,148.89,148.87,0.6815576]
[1642045140773,0.26,148.91,148.87,0.6815576]
[1642045140974,2.946,148.91,148.87,0.6815576]
[1642045141174,3.196,148.91,148.87,0.6815576]
[1642045142175,10.0764,148.9,148.87,0.6815576]
[1642045142377,6.06439994,148.89,148.87,0.6815576]
[1642045142776,6.31439994,148.89,148.87,0.6815576]
[1642045145379,0.25,148.89,148.87,0.6815576]
[1642045145582,10.3264,148.9,148.87,0.6815576]
[1642045146581,6.06439994,148.89,148.87,0.6815576]
[1642045146782,6.31439994,148.89,148.87,0.6815576]
[1642045147384,3.28219997,148.89,148.87,0.6815576]
[1642045148086,0.25,148.89,148.87,0.6815576]
[1642045148285,10.3264,148.9,148.87,0.6815576]
[1642045148687,10.0764,148.9,148.88,28.00331343]
[1642045148887,0.26,148.91,148.88,28.00331343]
[1642045150986,0.26,148.91,148.87,0.6815576]
[1642045150987,6.06439994,148.9,148.87,0.6815576]
[1642045151185,6.31439994,148.9,148.87,0.6815576]
[1642045152188,10.0776,148.89,148.87,0.6815576]
[1642045152388,12.7636,148.89,148.87,0.6815576]
[1642045152588,15.56439994,148.88,148.87,0.6815576]
[1642045152786,15.81439994,148.88,148.87,5.76e-05]
[1642045153815,16.07439994,148.88,148.87,5.76e-05]
[1642045154216,26.15519994,148.88,148.87,5.76e-05]
[1642045154417,28.84119994,148.88,148.87,5.76e-05]
[1642045155418,26.15519994,148.88,148.87,5.76e-05]
[1642045165431,25.89519994,148.88,148.87,5.76e-05]
[1642045168933,26.15519994,148.88,148.87,5.76e-05]
[1642045178479,28.84119994,148.88,148.87,5.76e-05]
[1642045182387,28.59119994,148.88,148.87,5.76e-05]
[1642045182785,30.43726317,148.88,148.87,5.76e-05]
[1642045183623,28.59119994,148.88,148.87,5.76e-05]
[1642045183823,32.0,148.87,148.78,2.686]
[1642045184024,10.0819,148.83,148.76,2.687]
[1642045184525,9.5,148.82,148.75,28.41495246]
[1642045184727,9.75,148.82,148.75,28.41495246]
[1642045184929,9.75,148.82,148.75,26.6747]
[1642045185326,10.0836,148.8,148.75,26.6747]
[1642045185527,19.5836,148.8,148.75,26.6747]
[1642045185729,0.26,148.79,148.75,26.6747]
[1642045186328,10.3336,148.8,148.75,26.6747]
[1642045186534,0.25,148.8,148.75,26.6747]
[1642045186760,9.75,148.82,148.76,0.26]
[1642045187231,9.75,148.82,148.75,26.6747]
[1642045188235,9.75,148.82,148.75,36.7554]
[1642045188936,9.75,148.82,148.75,26.6747]
[1642045190244,19.8318,148.82,148.75,26.6747]
[1642045191242,0.26,148.81,148.75,26.6747]
[1642045192942,10.3426,148.81,148.75,26.6747]
[1642045193143,10.5926,148.81,148.75,2.688]
[1642045193342,9.5,148.8,148.75,2.688]
[1642045193543,9.5,148.8,148.73,27.84959994]
[1642045193742,9.75,148.8,148.73,27.84959994]
[1642045194867,0.26,148.79,148.73,27.84959994]
[1642045195272,10.3443,148.79,148.73,27.84959994]
[1642045195672,10.5943,148.79,148.73,27.84959994]
[1642045196068,0.25,148.79,148.74,2.688]
[1642045196271,0.25,148.79,148.74,27.0136]
[1642045196673,33.83,148.81,148.74,27.0136]
[1642045197972,36.518,148.81,148.74,24.3256]
[1642045198872,0.26,148.8,148.74,24.3256]
[1642045199073,0.26,148.8,148.74,27.0136]
[1642045200973,10.3431,148.8,148.74,27.0136]
[1642045201173,10.3431,148.8,148.74,24.3256]
[1642045202075,19.8431,148.8,148.73,27.84959994]
[1642045202277,20.0931,148.8,148.73,27.84959994]
[1642045203179,20.0931,148.8,148.71,25.6102]
[1642045204277,20.0931,148.8,148.72,26.81970537]
[1642045204578,2.688,148.79,148.72,26.81970537]
[1642045204778,10.0852,148.77,148.72,26.81970537]
[1642045205180,10.3352,148.77,148.72,26.81970537]
[1642045205580,0.25,148.77,148.72,26.81970537]
[1642045206182,9.75,148.78,148.72,26.81970537]
[1642045206781,19.8347,148.78,148.72,26.81970537]
[1642045207383,22.5237,148.78,148.72,26.81970537]
[1642045208385,0.26,148.77,148.72,26.81970537]
[1642045208788,10.3347,148.78,148.72,26.81970537]
[1642045210386,0.26,148.77,148.72,26.81970537]
[1642045210587,10.3452,148.77,148.72,26.81970537]
[1642045210786,10.5952,148.77,148.72,26.81970537]
[1642045210989,0.51,148.77,148.72,26.81970537]
[1642045211187,0.25,148.77,148.72,26.81970537]
[1642045211990,10.3332,148.8,148.73,24.3132]
[1642045213189,10.3332,148.8,148.73,27.0012]
[1642045215995,0.26,148.79,148.73,27.0012]
[1642045216999,0.26,148.79,148.73,37.0835]
[1642045217497,0.26,148.81,148.73,37.0835]
[1642045219597,10.0823,148.82,148.73,37.0835]
[1642045219799,11.90698631,148.84,148.74,0.26]
[1642045219998,11.90698631,148.84,148.76,10.0803]
[1642045220197,11.90698631,148.84,148.77,26.1279]
[1642045220825,10.081,148.84,148.77,26.1279]
[1642045221025,2.688,148.83,148.77,23.4399]
[1642045221226,10.0828,148.81,148.77,23.4399]
[1642045221626,10.3328,148.81,148.77,23.4399]
[1642045223427,0.26,148.8,148.77,23.4399]
[1642045223628,3.03219997,148.79,148.77,23.4399]
[1642045223830,6.06439994,148.79,148.77,23.4399]
[1642045224032,6.06439994,148.79,148.74,76.4693]
[1642045225432,6.31439994,148.79,148.74,76.4693]
[1642045230239,16.39829994,148.79,148.74,76.4693]
[1642045233841,0.26,148.78,148.74,76.4693]
[1642045234741,10.3339,148.79,148.74,76.4693]
[1642045235142,0.25,148.79,148.74,76.4693]
[1642045235545,0.25,148.81,148.75,0.26]
[1642045235743,0.25,148.82,148.75,2.948]
[1642045235943,0.25,148.82,148.76,23.019]
[1642045236143,10.0819,148.82,148.75,2.688]
[1642045236344,12.188,148.81,148.74,76.4693]
[1642045236544,9.5,148.81,148.74,76.4693]
[1642045236747,9.75,148.81,148.74,76.4693]
[1642045237647,10.0833,148.8,148.74,76.4693]
[1642045238047,10.3333,148.8,148.74,76.4693]
[1642045239047,9.5,148.79,148.74,76.4693]
[1642045239273,19.8339,148.79,148.73,26.8071]
[1642045240852,2.688,148.78,148.73,24.1191]
[1642045241052,10.0849,148.78,148.73,24.1191]
[1642045241253,0.26,148.77,148.73,24.1191]
[1642045249085,0.26,148.77,148.74,2.689]
[1642045250385,0.26,148.77,148.73,26.8071]
[1642045253789,0.26,148.77,148.73,24.1191]
[1642045255987,10.3452,148.77,148.72,26.81970537]
[1642045256287,10.5952,148.77,148.72,26.81970537]
[1642045257787,2.689,148.76,148.7,1.7537354]
[1642045257989,12.189,148.76,148.7,1.7537354]
[1642045258188,10.0882,148.73,148.7,1.7537354]
[1642045258386,3.03219997,148.72,148.7,1.7537354]
[1642045258787,3.03219997,148.71,148.7,1.7537354]
[1642045259190,3.28219997,148.71,148.7,28.7537354]
[1642045259388,0.25,148.71,148.7,28.7537354]
[1642045261592,0.51,148.71,148.7,28.7537354]
[1642045261793,6.57439994,148.71,148.7,28.7537354]
[1642045262398,16.66379994,148.71,148.7,1.7537354]
[1642045264695,16.66379994,148.71,148.66,1.3647937]
[1642045264896,6.31439994,148.71,148.66,1.3647937]
[1642045266098,6.31439994,148.71,148.67,2.69]
[1642045266298,0.26,148.7,148.66,4.0547937]
[1642045268900,0.25,148.71,148.66,4.0547937]
[1642045269103,0.26,148.72,148.66,1.3647937]
[1642045269902,10.0899,148.7,148.66,1.3647937]
[1642045270306,10.3399,148.7,148.66,1.3647937]
[1642045272302,10.3399,148.7,148.65,27.21428397]
[1642045273704,0.26,148.69,148.65,27.21428397]
[1642045275508,0.26,148.69,148.65,2.69]
[1642045276607,0.26,148.69,148.64,51.04197614]
[1642045276805,0.26,148.69,148.64,48.35197614]
[1642045277205,10.3399,148.7,148.64,48.35197614]
[1642045277410,0.25,148.7,148.64,48.35197614]
[1642045277811,2.94,148.72,148.64,48.35197614]
[1642045278116,0.25,148.72,148.65,2.69]
[1642045278513,2.94,148.75,148.65,2.69]
[1642045278713,10.0879,148.73,148.65,12.7779]
[1642045278913,2.69,148.75,148.66,24.7604]
[1642045279114,23.3571,148.75,148.67,2.689]
[1642045280413,10.0873,148.74,148.67,2.689]
[1642045280643,10.3373,148.74,148.67,2.689]
[1642045281041,0.26,148.73,148.67,2.689]
[1642045281942,10.3481,148.73,148.67,2.689]
[1642045282142,10.5981,148.73,148.67,2.689]
[1642045285049,10.5981,148.73,148.66,24.5004]
[1642045286048,10.3381,148.73,148.66,24.5004]
[1642045286548,0.25,148.73,148.67,0.26]
[1642045286749,10.0871,148.75,148.67,2.949]
[1642045287351,10.0871,148.75,148.67,3.199]
[1642045287550,10.0871,148.75,148.67,2.949]
[1642045288151,10.0871,148.75,148.67,2.689]
[1642045288453,10.0871,148.75,148.67,4.42925246]
[1642045288651,35.0439,148.75,148.67,4.42925246]
[1642045289154,35.0439,148.75,148.67,2.689]
[1642045289553,2.689,148.74,148.66,27.1894]
[1642045289754,10.0889,148.72,148.66,27.1894]
[1642045290155,10.3389,148.72,148.66,27.1894]
[1642045291659,2.69,148.71,148.64,1.74025246]
[1642045291860,10.0914,148.68,148.64,1.74025246]
[1642045292259,10.3414,148.68,148.64,1.74025246]
[1642045292460,10.3414,148.68,148.63,103.8635]
[1642045296464,0.25,148.68,148.63,103.8635]
[1642045296666,2.94,148.71,148.63,103.8635]
[1642045296864,0.25,148.71,148.63,103.8635]
[1642045297364,2.94,148.73,148.63,103.8635]
[1642045297864,0.26,148.72,148.63,103.8635]
[1642045298064,12.7797,148.71,148.63,103.8635]
[1642045298265,13.0297,148.71,148.63,103.8635]
[1642045298871,22.5297,148.71,148.63,103.8635]
[1642045300496,22.2797,148.71,148.63,103.8635]
[1642045301298,19.5897,148.71,148.64,2.69]
[1642045301503,12.7784,148.73,148.64,2.95]
[1642045301699,10.0884,148.73,148.66,1.3647937]
[1642045301899,1.82598631,148.75,148.67,29.11238619]
[1642045302599,1.82598631,148.76,148.67,28.85238619]
[1642045302799,0.25,148.75,148.67,28.85238619]
[1642045302999,1.82598631,148.76,148.67,28.85238619]
[1642045303200,10.0872,148.74,148.67,28.85238619]
[1642045305002,0.26,148.73,148.67,28.85238619]
[1642045306403,10.3372,148.74,148.67,28.85238619]
[1642045306604,10.0879,148.73,148.67,2.69]
[1642045307004,10.0879,148.73,148.66,2.689]
[1642045308107,10.3379,148.73,148.66,2.689]
[1642045308505,10.3379,148.73,148.65,27.481]
[1642045308506,10.0903,148.7,148.65,27.481]
[1642045308708,10.3403,148.7,148.63,1.74025246]
[1642045308905,13.0303,148.7,148.63,1.74025246]
[1642045309306,13.0303,148.7,148.61,2.69]
[1642045311508,13.0303,148.7,148.63,10.0893]
[1642045312109,22.5303,148.7,148.62,0.26]
[1642045312309,19.8403,148.7,148.62,0.26]
[1642045313811,0.26,148.69,148.62,0.26]
[1642045315213,0.26,148.69,148.63,2.69]
[1642045316112,10.3507,148.69,148.63,2.69]
[1642045316312,10.3507,148.69,148.61,4.43025246]
[1642045316511,10.6007,148.69,148.61,4.43025246]
[1642045316712,10.6007,148.69,148.61,2.69]
[1642045318711,2.69,148.68,148.61,2.69]
[1642045318912,10.0921,148.67,148.61,2.69]
[1642045319313,10.3421,148.67,148.61,2.69]
[1642045321413,2.691,148.66,148.6,24.7928]
[1642045321614,10.094,148.64,148.58,75.84265246]
[1642045322013,10.344,148.64,148.58,75.84265246]
[1642045322814,10.344,148.64,148.58,74.1024]
[1642045326319,0.26,148.63,148.58,74.1024]
[1642045326719,0.25,148.64,148.58,74.1024]
[1642045326922,0.25,148.66,148.59,2.951]
[1642045327120,0.25,148.66,148.59,26.7934]
[1642045327321,0.25,148.68,148.59,27.0434]
[1642045327623,2.94,148.69,148.59,27.0434]
[1642045327822,2.69,148.69,148.59,27.0434]
[1642045328023,10.3518,148.68,148.59,37.1354]
[1642045328223,10.6018,148.68,148.59,37.1354]
[1642045328823,10.6018,148.68,148.59,36.8854]
[1642045329023,10.6018,148.68,148.59,26.7934]
[1642045329224,2.691,148.67,148.59,26.5334]
[1642045329426,10.0942,148.64,148.59,2.691]
[1642045329826,10.3442,148.64,148.59,2.691]
[1642045330427,0.25,148.64,148.59,2.691]
[1642045330626,9.5,148.69,148.59,2.691]
[1642045330627,2.691,148.69,148.6,0.26]
[1642045330928,0.25,148.66,148.61,2.69]
[1642045331726,0.25,148.66,148.61,34.05935325]
[1642045331927,23.6489,148.7,148.61,34.05935325]
[1642045332326,10.0918,148.68,148.62,22.8632]
[1642045332526,10.3418,148.68,148.62,22.8632]
[1642045333760,0.26,148.67,148.62,22.8632]
[1642045333957,10.352,148.67,148.62,22.8632]
[1642045334157,10.602,148.67,148.62,22.8632]
[1642045334958,10.352,148.67,148.62,22.8632]
[1642045335162,2.69,148.69,148.62,23.1132]
[1642045335362,2.69,148.69,148.63,0.26]
[1642045336161,2.69,148.69,148.65,10.0879]
[1642045336360,2.69,148.69,148.66,2.69]
[1642045336561,2.69,148.69,148.66,2.95]
[1642045336961,2.69,148.69,148.66,2.69]
[1642045337560,2.69,148.69,148.67,26.40608929]
[1642045339965,2.69,148.69,148.65,2.69]
[1642045340366,2.69,148.69,148.64,35.5477]
[1642045340567,2.69,148.69,148.65,0.26]
[1642045340970,2.69,148.69,148.65,31.01768582]
[1642045341167,2.94,148.69,148.64,25.4596]
[1642045341367,0.25,148.69,148.64,25.4596]
[1642045342367,10.09,148.7,148.64,25.4596]
[1642045342567,10.34,148.7,148.64,25.4596]
[1642045344871,2.69,148.74,148.64,25.4596]
[1642045345273,2.69,148.74,148.64,25.7096]
[1642045345473,2.69,148.74,148.65,0.26]
[1642045345676,25.4941,148.75,148.66,2.69]
[1642045346177,25.7441,148.75,148.66,2.69]
[1642045346379,0.26,148.74,148.66,2.69]
[1642045346977,19.8477,148.74,148.66,2.69]
[1642045347180,20.0977,148.74,148.66,2.69]
[1642045347477,2.689,148.73,148.65,0.26]
[1642045347677,27.5901,148.73,148.65,0.26]
[1642045349079,10.0894,148.71,148.65,0.26]
[1642045349279,10.3394,148.71,148.65,0.26]
[1642045349880,0.25,148.71,148.65,0.26]
[1642045350481,10.0887,148.72,148.65,0.26]
[1642045350683,44.95588631,148.76,148.65,76.69]
[1642045350684,2.69,148.75,148.65,76.69]
[1642045350885,1.82598631,148.76,148.65,201.4]
[1642045351083,1.82598631,148.76,148.67,66.93]
[1642045351283,1.82598631,148.76,148.71,10.0816]
[1642045351484,8.631e-05,148.76,148.73,65.0]
[1642045351685,3.84372013,148.79,148.74,2.689]
[1642045351912,2.688,148.84,148.74,2.949]
[1642045352113,2.688,148.84,148.74,26.7272]
[1642045352313,10.0823,148.84,148.74,24.0382]
[1642045352514,2.688,148.83,148.74,24.0382]
[1642045353018,4.51777827,148.82,148.74,24.0382]
[1642045353212,4.76777827,148.82,148.74,24.0382]
[1642045353714,14.85117827,148.82,148.72,2.688]
[1642045353914,2.948,148.81,148.72,2.688]
[1642045354314,3.198,148.81,148.72,2.688]
[1642045354713,3.198,148.81,148.7,24.5604]
[1642045354914,10.0859,148.78,148.7,24.5604]
[1642045355115,2.689,148.77,148.68,2.688]
[1642045355620,2.939,148.77,148.68,2.688]
[1642045355820,0.25,148.77,148.67,33.5815]
[1642045356119,2.689,148.76,148.68,12.7752]
[1642045356318,0.25,148.77,148.69,23.39758402]
[1642045356517,0.25,148.77,148.7,26.9786]
[1642045357515,0.25,148.77,148.7,24.2896]
[1642045357717,0.25,148.78,148.7,24.2896]
[1642045358122,10.086,148.77,148.69,26.08658402]
[1642045358518,10.336,148.77,148.69,26.08658402]
[1642045359820,0.25,148.77,148.69,26.08658402]
[1642045360220,13.0243,148.78,148.69,26.08658402]
[1642045360420,10.3353,148.78,148.69,26.08658402]
[1642045361223,0.26,148.77,148.69,36.17218402]
[1642045361822,10.346,148.77,148.69,26.08658402]
[1642045362222,10.596,148.77,148.69,26.08658402]
[1642045362623,10.596,148.77,148.69,2.689]
[1642045364125,2.689,148.76,148.68,26.5968]
[1642045364324,10.0878,148.75,148.68,23.9078]
[1642045364524,10.0878,148.75,148.68,26.5968]
[1642045364725,10.3378,148.75,148.68,26.5968]
[1642045364925,0.26,148.74,148.68,23.9078]
[1642045369833,0.26,148.74,148.68,33.9942]
[1642045370040,0.25,148.75,148.68,33.9942]
[1642045370234,36.3065,148.77,148.68,33.9942]
[1642045370632,25.9699,148.77,148.68,33.9942]
[1642045370833,25.9699,148.77,148.71,10.0843]
[1642045371032,9.5,148.78,148.71,10.0843]
[1642045371235,12.189,148.78,148.71,10.0843]
[1642045371434,12.189,148.78,148.71,41.65042656]
[1642045371842,9.5,148.78,148.71,41.65042656]
[1642045372636,9.75,148.78,148.71,41.65042656]
[1642045373035,0.25,148.78,148.72,2.949]
[1642045373236,2.939,148.81,148.72,13.0323]
[1642045374340,0.26,148.8,148.72,13.0323]
[1642045374940,10.3426,148.82,148.72,13.2823]
[1642045375740,0.51,148.82,148.72,13.2823]
[1642045375941,0.25,148.82,148.72,13.2823]
[1642045376242,0.26,148.83,148.72,13.2823]
[1642045377141,10.3418,148.83,148.72,13.2823]
[1642045377542,10.5918,148.83,148.72,13.2823]
[1642045377743,10.5918,148.83,148.72,13.0323]
[1642045378782,2.688,148.82,148.72,13.0323]